bitfinex-derivatives/quotes_SOLF0:USTF0_20251024
["timestamp","ask_amount","ask_price","bid_price","bid_amount"]
[1761298542454,1.51901753,192.56,192.49,2.71]
[1761298542753,4.14896256,192.55,192.49,2.71]
[1761298542955,4.14896256,192.54,192.49,2.71]
[1761298543252,4.14896256,192.53,192.49,2.71]
[1761298543452,1.51901753,192.56,192.49,2.71]
[1761298543653,4.14924218,192.55,192.49,2.71]
[1761298543854,4.14924218,192.54,192.49,2.71]
[1761298544047,4.14924218,192.53,192.49,2.71]
[1761298544249,1.51901753,192.56,192.49,2.71]
[1761298544448,4.14895309,192.55,192.49,2.71]
[1761298544651,4.14895309,192.54,192.49,2.71]
[1761298544860,4.14895309,192.53,192.49,2.71]
[1761298545161,4.14895309,192.52,192.49,2.71]
[1761298545360,1.51901753,192.56,192.49,2.71]
[1761298545561,4.14958578,192.55,192.49,2.71]
[1761298545860,4.14958578,192.54,192.49,2.71]
[1761298546062,4.14958578,192.53,192.49,2.71]
[1761298546262,4.14958578,192.52,192.49,2.71]
[1761298546462,1.51901753,192.56,192.49,2.71]
[1761298546663,4.15006717,192.55,192.49,2.71]
[1761298546862,4.15006717,192.54,192.49,2.71]
[1761298547056,4.15006717,192.53,192.49,2.71]
[1761298547362,4.15006717,192.52,192.49,2.71]
[1761298547566,1.51901753,192.56,192.49,2.71]
[1761298547766,4.15042676,192.55,192.49,2.71]
[1761298548065,4.15042676,192.54,192.49,2.71]
[1761298548263,4.15042676,192.53,192.49,2.71]
[1761298548461,4.15042676,192.52,192.47,7.3451]
[1761298548661,4.15042676,192.51,192.47,7.3451]
[1761298548961,1.51901753,192.54,192.48,2.67]
[1761298549263,4.15023282,192.53,192.48,2.67]
[1761298549467,4.15023282,192.52,192.48,2.67]
[1761298549666,4.15023282,192.51,192.48,2.67]
[1761298549860,1.51901753,192.52,192.48,2.67]
[1761298550057,4.14990489,192.51,192.48,2.67]
[1761298550260,1.51901753,192.52,192.48,2.67]
[1761298550669,1.51901753,192.54,192.48,2.67]
[1761298550857,4.14936625,192.53,192.48,2.67]
[1761298551167,4.14936625,192.52,192.48,2.67]
[1761298551366,1.51901753,192.54,192.48,2.67]
[1761298551566,4.14929561,192.53,192.48,2.67]
[1761298551767,4.14929561,192.52,192.48,2.67]
[1761298551968,1.51901753,192.54,192.48,2.67]
[1761298552168,4.14929678,192.53,192.48,2.67]
[1761298552370,4.14929678,192.52,192.48,2.67]
[1761298552571,1.51901753,192.54,192.48,2.67]
[1761298552768,4.14931525,192.53,192.48,2.67]
[1761298552970,4.14931525,192.52,192.48,2.67]
[1761298553171,1.51901753,192.54,192.48,2.67]
[1761298553473,4.14929434,192.53,192.48,2.67]
[1761298553670,4.14929434,192.52,192.48,2.67]
[1761298553866,4.81380424,192.56,192.48,2.67]
[1761298554179,4.14947333,192.55,192.48,2.67]
[1761298554377,4.14947333,192.54,192.48,2.67]
[1761298554575,4.14947333,192.53,192.48,2.67]
[1761298554881,1.51901753,192.55,192.48,2.67]
[1761298555069,4.1498857,192.54,192.48,2.67]
[1761298555269,4.1498857,192.53,192.48,2.67]
[1761298555568,1.51901753,192.55,192.48,2.67]
[1761298555769,4.14987329,192.54,192.48,2.67]
[1761298555969,4.14987329,192.53,192.48,4.6748]
[1761298556175,1.51901753,192.55,192.49,2.67]
[1761298556476,4.14987531,192.54,192.49,2.67]
[1761298556675,4.14987531,192.53,192.49,2.67]
[1761298556877,4.15086826,192.52,192.5,2.67]
[1761298557078,1.51901753,192.55,192.5,2.67]
[1761298557278,4.15150337,192.54,192.5,2.67]
[1761298557465,4.15150337,192.53,192.5,2.67]
[1761298557670,4.15150337,192.52,192.5,2.67]
[1761298557965,1.51901753,192.55,192.5,2.67]
[1761298558168,4.15150617,192.54,192.5,2.67]
[1761298558380,4.15150617,192.53,192.5,2.67]
[1761298558670,4.15150617,192.52,192.5,2.67]
[1761298558877,1.51901753,192.55,192.48,2.67]
[1761298559077,4.15141624,192.54,192.48,2.67]
[1761298559277,4.15141624,192.53,192.48,2.67]
[1761298559480,4.15141624,192.52,192.48,2.67]
[1761298559679,1.51901753,192.55,192.48,2.67]
[1761298559876,4.15218118,192.54,192.48,2.67]
[1761298560077,4.15218118,192.53,192.49,2.61]
[1761298560273,4.15218118,192.52,192.49,2.61]
[1761298560474,1.51901753,192.55,192.49,2.61]
[1761298560676,4.15200469,192.54,192.49,2.61]
[1761298560881,4.15200469,192.53,192.49,2.61]
[1761298561178,4.15200469,192.52,192.49,2.61]
[1761298561376,1.51901753,192.55,192.49,2.61]
[1761298561580,4.1509432,192.54,192.49,2.61]
[1761298561780,4.1509432,192.53,192.49,2.61]
[1761298561981,4.1509432,192.52,192.49,2.61]
[1761298562281,1.51901753,192.55,192.49,2.61]
[1761298562474,4.1513874,192.54,192.49,2.61]
[1761298562670,4.1513874,192.53,192.49,2.61]
[1761298562875,1.51901753,192.55,192.49,2.61]
[1761298563085,4.15156485,192.54,192.49,2.61]
[1761298563278,4.15156485,192.53,192.49,2.61]
[1761298563478,1.51901753,192.55,192.49,2.61]
[1761298563672,4.1511242,192.54,192.49,2.61]
[1761298563877,4.1511242,192.53,192.49,2.61]
[1761298564082,4.1511242,192.52,192.49,2.61]
[1761298564377,1.51901753,192.55,192.49,2.61]
[1761298564584,4.1518312,192.54,192.49,2.61]
[1761298564783,4.1518312,192.53,192.49,2.61]
[1761298564984,4.1518312,192.52,192.49,2.61]
[1761298565184,4.1518312,192.51,192.49,2.61]
[1761298565378,1.51901753,192.55,192.49,2.61]
[1761298565583,4.15285871,192.54,192.49,2.61]
[1761298565782,4.15285871,192.53,192.49,2.61]
[1761298565984,4.15285871,192.52,192.49,2.61]
[1761298566282,4.15285871,192.51,192.49,2.61]
[1761298566482,1.51901753,192.55,192.49,2.61]
[1761298566681,4.17104789,192.54,192.49,2.61]
[1761298566883,4.17104789,192.53,192.49,2.61]
[1761298567084,4.17104789,192.52,192.49,2.61]
[1761298567285,4.17104789,192.51,192.49,2.61]
[1761298567486,6.33282177,192.55,192.49,2.61]
[1761298567689,4.17184115,192.54,192.49,2.61]
[1761298567882,4.17184115,192.53,192.49,2.61]
[1761298568087,4.17184115,192.52,192.49,2.61]
[1761298568389,4.17184115,192.51,192.49,2.61]
[1761298568580,6.33282177,192.55,192.49,2.61]
[1761298568780,4.17256564,192.54,192.49,2.61]
[1761298568984,4.17256564,192.53,192.49,2.61]
[1761298569188,4.17256564,192.52,192.49,2.61]
[1761298569386,4.17256564,192.51,192.49,2.61]
[1761298569588,4.17256564,192.5,192.49,2.61]
[1761298577887,4.81380424,192.57,192.51,2.61]
[1761298578194,2.3,192.56,192.52,2.61]
[1761298579689,2.3,192.56,192.44,62.0]
[1761298579690,4.81380424,192.54,192.48,2.61]
[1761298579894,2.3,192.53,192.48,2.61]
[1761298581986,4.81380424,192.54,192.49,2.61]
[1761298582188,4.81380424,192.55,192.49,2.61]
[1761298583194,4.81380424,192.55,192.5,1.51901753]
[1761298583395,2.3,192.57,192.51,2.61]
[1761298583890,2.3,192.56,192.51,2.61]
[1761298585091,2.3,192.56,192.52,2.61]
[1761298587392,2.3,192.56,192.49,7.2846]
[1761298587603,2.3,192.56,192.49,2.61]
[1761298587804,2.3,192.55,192.49,2.61]
[1761298588005,2.3,192.54,192.45,8.80451753]
[1761298588207,2.3,192.52,192.45,7.2855]
[1761298588405,2.3,192.52,192.45,2.61]
[1761298590022,2.3,192.5,192.45,2.61]
[1761298590311,2.3,192.48,192.45,2.61]
[1761298591915,3.81901753,192.51,192.45,2.61]
[1761298592120,6.4248967,192.5,192.45,2.61]
[1761298592413,4.1248967,192.49,192.45,2.61]
[1761298592612,4.1248967,192.48,192.45,2.61]
[1761298592813,2.3,192.52,192.45,2.61]
[1761298593017,4.12524809,192.51,192.45,2.61]
[1761298593211,6.42524809,192.5,192.45,2.61]
[1761298593515,4.12524809,192.49,192.45,2.61]
[1761298593716,4.12524809,192.48,192.45,2.61]
[1761298594014,2.3,192.5,192.45,2.61]
[1761298594215,6.42471778,192.49,192.45,2.61]
[1761298594417,4.12471778,192.48,192.45,2.61]
[1761298594713,2.3,192.49,192.45,2.61]
[1761298594920,4.12423333,192.48,192.45,2.61]
[1761298595215,2.3,192.49,192.45,2.61]
[1761298605216,2.3,192.53,192.45,2.61]
[1761298605417,6.39448408,192.52,192.45,2.61]
[1761298605618,4.09448408,192.51,192.45,2.61]
[1761298605817,6.39448408,192.5,192.45,2.61]
[1761298606012,2.3,192.5,192.45,2.61]
[1761298607016,6.39436283,192.49,192.45,2.61]
[1761298607215,2.3,192.49,192.45,2.61]
[1761298616427,4.81380424,192.54,192.46,2.89]
[1761298616633,2.3,192.52,192.46,2.89]
[1761298616831,6.3939025,192.51,192.46,2.89]
[1761298617033,4.0939025,192.5,192.46,2.89]
[1761298617336,2.3,192.51,192.46,2.89]
[1761298617532,4.09395308,192.5,192.46,2.89]
[1761298617733,2.3,192.51,192.46,2.89]
[1761298617936,6.39395318,192.5,192.46,7.5653]
[1761298618136,2.3,192.53,192.47,2.89]
[1761298618333,6.39395369,192.52,192.47,2.89]
[1761298618536,6.39395369,192.51,192.47,2.89]
[1761298618839,6.39395369,192.5,192.47,2.89]
[1761298619043,2.3,192.5,192.47,2.89]
[1761298619335,2.3,192.53,192.47,2.89]
[1761298619639,2.3,192.53,192.46,4.6753]
[1761298619640,4.09426583,192.52,192.48,2.64]
[1761298619943,4.09426583,192.51,192.48,2.64]
[1761298620133,2.3,192.54,192.48,2.64]
[1761298620329,6.39440034,192.53,192.48,2.64]
[1761298620536,4.09440034,192.52,192.48,2.64]
[1761298620835,2.3,192.53,192.48,2.64]
[1761298621039,4.09554711,192.52,192.49,2.64]
[1761298621338,7.11380424,192.56,192.49,2.64]
[1761298621538,4.09615412,192.55,192.51,4.6741]
[1761298621741,2.3,192.56,192.52,2.64]
[1761298621933,4.09633005,192.55,192.52,2.64]
[1761298622134,4.09628679,192.54,192.52,2.64]
[1761298622336,2.3,192.56,192.52,2.64]
[1761298622537,4.09592867,192.55,192.52,4.6738]
[1761298622843,4.09592867,192.54,192.53,2.64]
[1761298625940,2.3,192.56,192.52,4.6738]
[1761298626243,2.3,192.54,192.52,7.3138]
[1761298626641,105.28727702,192.57,192.52,7.3138]
[1761298626847,105.28727702,192.57,192.53,2.64]
[1761298626848,6.3817894,192.56,192.53,2.64]
[1761298627041,4.0817894,192.55,192.53,2.64]
[1761298627238,2.3,192.56,192.53,2.64]
[1761298629045,2.3,192.59,192.54,2.64]
[1761298629249,4.08165702,192.58,192.54,2.64]
[1761298629447,4.08165702,192.57,192.54,2.64]
[1761298629742,42.88,192.62,192.55,2.64]
[1761298629950,4.08170141,192.61,192.55,2.64]
[1761298630246,2.3,192.62,192.55,2.64]
[1761298630444,4.08002035,192.61,192.55,2.64]
[1761298630643,2.3,192.62,192.55,2.64]
[1761298630844,4.08010364,192.61,192.55,2.64]
[1761298631041,4.08010364,192.61,192.47,24.9301]
[1761298631042,2.3,192.62,192.58,2.64]
[1761298631244,2.3,192.6,192.54,13.27432384]
[1761298631644,2.3,192.6,192.55,2.64]
[1761298631948,2.3,192.6,192.56,4.6729]
[1761298632148,2.3,192.6,192.57,2.64]
[1761298632544,2.3,192.65,192.57,2.64]
[1761298632744,6.3770094,192.64,192.58,2.64]
[1761298633042,4.0770094,192.63,192.58,2.64]
[1761298633243,2.3,192.63,192.58,2.64]
[1761298634244,2.3,192.63,192.58,7.3124]
[1761298634549,2.3,192.63,192.59,2.64]
[1761298635739,0.14661,192.66,192.6,2.64]
[1761298635939,2.3,192.64,192.6,2.64]
[1761298636143,0.14661,192.66,192.6,2.64]
[1761298636144,0.14661,192.66,192.65,4.6708]
[1761298636361,0.14661,192.66,192.65,7.3108]
[1761298636548,1e-08,192.66,192.65,7.3108]
[1761298636750,1e-08,192.66,192.65,2.64]
[1761298639553,4.669,192.73,192.63,7.04552384]
[1761298639554,2.3,192.72,192.66,2.64]
[1761298641052,2.3,192.72,192.66,7.3103]
[1761298641649,2.3,192.72,192.67,2.64]
[1761298644854,4.6688,192.74,192.67,2.64]
[1761298645050,2.3,192.75,192.67,2.64]
[1761298645251,2.3,192.75,192.68,2.64]
[1761298645957,2.3,192.75,192.65,7.04512384]
[1761298646154,2.3,192.75,192.66,2.64]
[1761298647158,2.3,192.75,192.68,2.64]
[1761298647747,2.3,192.75,192.69,4.6698]
[1761298647950,2.3,192.75,192.7,2.64]
[1761298658876,1.51547432,192.73,192.67,2.77]
[1761298659062,2.29,192.72,192.67,2.77]
[1761298659459,2.29,192.72,192.64,2.77]
[1761298660064,2.29,192.72,192.65,7.4406]
[1761298660566,2.29,192.72,192.65,2.77]
[1761298663467,1.51547432,192.71,192.65,2.77]
[1761298663766,2.29,192.7,192.65,2.77]
[1761298664067,3.80547432,192.7,192.62,2.77]
[1761298664268,3.80547432,192.7,192.64,2.77]
[1761298664459,2.29,192.69,192.64,2.77]
[1761298665462,2.29,192.69,192.61,1.51547432]
[1761298665671,1.51547432,192.68,192.61,2.77]
[1761298665859,2.29,192.67,192.61,2.77]
[1761298666160,2.29,192.65,192.59,74.1515141]
[1761298666372,2.29,192.65,192.6,2.77]
[1761298667165,2.29,192.65,192.59,75.66698842]
[1761298667468,2.29,192.65,192.59,1.51547432]
[1761298668172,2.29,192.7,192.62,4.28547432]
[1761298668470,2.29,192.68,192.65,2.77]
[1761298668659,2.29,192.71,192.65,2.77]
[1761298668860,2.29,192.69,192.65,2.77]
[1761298669258,2.29,192.69,192.64,1.51547432]
[1761298669462,2.29,192.67,192.62,4.28547432]
[1761298669864,2.29,192.67,192.61,1.51547432]
[1761298670666,2.29,192.67,192.59,7.4421]
[1761298670667,2.29,192.67,192.6,1.51547432]
[1761298671367,2.29,192.65,192.6,1.51547432]
[1761298671771,2.29,192.65,192.61,2.77]
[1761298672071,2.29,192.69,192.63,2.77]
[1761298672373,2.29,192.67,192.63,2.77]
[1761298672570,6.30998826,192.66,192.63,2.77]
[1761298672765,2.29,192.66,192.63,2.77]
[1761298676575,2.29,192.66,192.62,2.77]
[1761298677073,2.29,192.66,192.61,1.51547432]
[1761298677576,2.29,192.66,192.61,2.77]
[1761298678576,1.51547432,192.7,192.66,2.77]
[1761298678577,2.29,192.7,192.66,2.77]
[1761298678881,4.03045056,192.69,192.64,1.51547432]
[1761298679066,2.29,192.67,192.63,1.51547432]
[1761298679474,2.29,192.67,192.64,2.88]
[1761298679870,2.29,192.67,192.61,1.51547432]
[1761298680370,2.29,192.67,192.61,4.39547432]
[1761298681875,2.3,192.65,192.61,4.39547432]
[1761298683768,2.3,192.65,192.61,2.88]
[1761298683973,2.3,192.65,192.62,1.51547432]
[1761298686572,2.3,192.65,192.62,4.39547432]
[1761298686974,2.3,192.68,192.62,1.51547432]
[1761298687174,6.35782707,192.67,192.63,2.88]
[1761298687374,4.05765732,192.66,192.63,2.88]
[1761298687574,2.3,192.66,192.63,2.88]
[1761298688475,4.05716566,192.65,192.59,4.39547432]
[1761298688680,2.3,192.65,192.59,4.39547432]
[1761298692082,2.3,192.65,192.6,2.88]
[1761298692282,2.3,192.65,192.61,2.88]
[1761298695084,2.3,192.65,192.6,1.51547432]
[1761298695384,2.3,192.65,192.58,4.39547432]
[1761298695984,2.3,192.65,192.59,2.88]
[1761298699287,2.3,192.65,192.61,2.88]
[1761298699586,2.3,192.63,192.59,4.39547432]
[1761298699885,2.3,192.63,192.6,2.88]
[1761298701287,2.3,192.63,192.61,1.51547432]
[1761298701691,2.3,192.66,192.62,2.88]
[1761298701889,6.36007967,192.65,192.62,2.88]
[1761298702089,4.06007967,192.64,192.62,2.88]
[1761298702285,2.3,192.68,192.62,2.88]
[1761298702489,6.36143553,192.67,192.62,2.88]
[1761298702691,4.06143553,192.66,192.62,2.88]
[1761298702884,4.06143553,192.65,192.62,4.39547432]
[1761298703095,4.06143395,192.64,192.62,4.39547432]
[1761298703288,2.3,192.66,192.62,4.39547432]
[1761298703489,4.06304063,192.65,192.63,2.88]
[1761298703790,4.06304063,192.64,192.63,2.88]
[1761298706691,6.36304063,192.64,192.61,1.51547432]
[1761298706989,4.06304063,192.63,192.61,1.51547432]
[1761298707195,2.3,192.64,192.61,1.51547432]
[1761298707393,2.3,192.62,192.59,2.88]
[1761298707595,2.3,192.62,192.58,1.51547432]
[1761298707800,2.3,192.6,192.56,1.51547432]
[1761298707988,2.3,192.58,192.56,1.51547432]
[1761298708896,2.3,192.58,192.56,4.22547432]
[1761298712293,2.3,192.62,192.56,4.22547432]
[1761298712493,2.3,192.6,192.56,4.22547432]
[1761298712693,6.36849788,192.59,192.56,4.22547432]
[1761298712892,2.3,192.59,192.56,4.22547432]
[1761298714998,2.3,192.59,192.56,2.71]
[1761298715200,2.3,192.59,192.56,4.22547432]
[1761298717602,2.3,192.63,192.59,2.74]
[1761298717804,4.08705294,192.62,192.59,2.74]
[1761298718097,4.08705294,192.61,192.5,62.0]
[1761298718303,2.3,192.64,192.6,4.25547432]
[1761298718506,2.3,192.62,192.6,4.25547432]
[1761298718701,4.08713191,192.61,192.6,2.74]
[1761298722994,4.08713191,192.61,192.56,2.74]
[1761298723198,4.08713191,192.6,192.56,2.74]
[1761298723398,4.81380424,192.64,192.56,2.74]
[1761298723399,7.11380424,192.64,192.56,2.74]
[1761298723599,4.0892115,192.63,192.56,2.74]
[1761298723800,4.0892115,192.62,192.56,2.74]
[1761298724097,4.0892115,192.61,192.56,2.74]
[1761298724392,4.0892115,192.6,192.56,2.74]
[1761298724601,7.11380424,192.64,192.56,2.74]
[1761298724793,4.08968718,192.63,192.56,2.74]
[1761298724999,4.08968718,192.62,192.56,2.74]
[1761298725194,4.08968718,192.61,192.56,2.74]
[1761298725397,4.08968718,192.6,192.56,2.74]
[1761298725601,2.3,192.63,192.56,2.74]
[1761298725800,4.08968153,192.62,192.56,2.74]
[1761298726001,4.08968153,192.61,192.56,2.74]
[1761298726202,4.08968153,192.6,192.56,2.74]
[1761298726405,2.3,192.63,192.56,2.74]
[1761298726602,4.09009295,192.62,192.56,2.74]
[1761298726906,4.09009295,192.61,192.56,2.74]
[1761298727109,4.09009295,192.6,192.56,2.74]
[1761298727302,2.3,192.63,192.56,2.74]
[1761298727502,4.09019024,192.62,192.56,2.74]
[1761298727702,4.09019024,192.61,192.56,2.74]
[1761298728001,4.09019024,192.6,192.56,2.74]
[1761298728197,2.3,192.63,192.56,2.74]
[1761298728401,4.09032091,192.62,192.56,2.74]
[1761298728602,4.09032091,192.61,192.56,2.74]
[1761298728904,4.09032091,192.6,192.56,2.74]
[1761298729102,4.09048518,192.59,192.56,2.74]
[1761298729308,2.3,192.63,192.56,2.74]
[1761298729510,4.09048518,192.62,192.56,2.74]
[1761298729708,4.09048518,192.61,192.56,2.74]
[1761298729908,4.09048518,192.6,192.56,2.74]
[1761298730109,4.09048518,192.59,192.56,2.74]
[1761298730304,2.3,192.63,192.56,2.74]
[1761298730610,4.09067675,192.62,192.56,2.74]
[1761298730810,4.09067675,192.61,192.56,2.74]
[1761298731010,4.09067675,192.6,192.56,2.74]
[1761298731212,2.3,192.63,192.56,2.74]
[1761298731417,4.09127344,192.62,192.56,2.74]
[1761298731712,4.09127344,192.61,192.56,2.74]
[1761298732012,4.09127344,192.6,192.56,2.74]
[1761298732213,2.3,192.63,192.56,2.74]
[1761298732413,4.09172356,192.62,192.56,2.74]
[1761298732613,4.09172356,192.61,192.56,2.74]
[1761298732814,4.09172356,192.6,192.56,2.74]
[1761298733117,2.3,192.63,192.56,2.74]
[1761298733310,4.09211713,192.62,192.56,2.74]
[1761298733613,6.39211713,192.61,192.57,2.74]
[1761298733815,4.09211713,192.6,192.57,2.74]
[1761298734006,2.3,192.61,192.57,2.74]
[1761298734204,4.0921181,192.6,192.57,2.74]
[1761298734403,2.3,192.64,192.57,2.74]
[1761298734607,6.39225656,192.63,192.57,2.74]
[1761298734805,6.39225656,192.62,192.57,2.74]
[1761298735014,4.09225656,192.61,192.57,2.74]
[1761298735316,2.3,192.62,192.57,2.74]
[1761298735522,4.09243995,192.61,192.57,2.74]
[1761298735814,2.3,192.62,192.57,2.74]
[1761298736015,4.09244109,192.61,192.57,2.74]
[1761298736313,2.3,192.62,192.57,2.74]
[1761298736510,4.09259168,192.61,192.57,2.74]
[1761298736818,2.3,192.62,192.57,2.74]
[1761298737016,6.39259053,192.61,192.57,2.74]
[1761298737217,4.09274734,192.6,192.57,2.74]
[1761298737417,2.3,192.61,192.57,2.74]
[1761298737619,4.09274525,192.6,192.57,2.74]
[1761298737819,2.3,192.61,192.57,2.74]
[1761298738116,4.09274525,192.6,192.57,2.74]
[1761298738313,2.3,192.61,192.57,2.74]
[1761298738512,4.09291179,192.6,192.57,2.74]
[1761298738713,2.3,192.61,192.57,2.74]
[1761298738910,4.09291064,192.6,192.57,2.74]
[1761298739110,2.3,192.61,192.57,2.74]
[1761298739312,4.0930657,192.6,192.57,2.74]
[1761298739523,2.3,192.61,192.57,2.74]
[1761298739713,4.09308708,192.6,192.57,2.74]
[1761298739914,2.3,192.64,192.57,2.74]
[1761298740115,6.3930657,192.63,192.57,2.74]
[1761298740315,6.3930657,192.62,192.57,2.74]
[1761298740515,4.0930657,192.61,192.57,2.74]
[1761298740715,4.0930657,192.6,192.57,2.74]
[1761298740916,2.3,192.62,192.57,2.74]
[1761298741217,4.09316457,192.61,192.57,2.74]
[1761298741434,2.3,192.62,192.57,2.74]
[1761298741621,4.09349248,192.61,192.57,2.74]
[1761298741816,2.3,192.62,192.57,2.74]
[1761298742015,4.09348789,192.61,192.57,2.74]
[1761298742219,2.3,192.62,192.57,2.74]
[1761298742420,4.09358683,192.61,192.57,2.74]
[1761298742629,2.3,192.62,192.57,2.74]
[1761298742926,4.0936489,192.61,192.57,2.74]
[1761298743128,2.3,192.62,192.57,2.74]
[1761298743421,4.09359006,192.61,192.57,2.74]
[1761298743721,2.3,192.62,192.57,2.74]
[1761298744022,4.09381403,192.61,192.57,2.74]
[1761298744221,2.3,192.62,192.57,2.74]
[1761298744422,4.09393454,192.61,192.57,2.74]
[1761298744623,2.3,192.62,192.57,2.74]
[1761298744822,4.09398012,192.61,192.57,2.74]
[1761298745024,2.3,192.62,192.57,2.74]
[1761298745223,4.09397702,192.61,192.57,2.74]
[1761298745427,2.3,192.62,192.57,2.74]
[1761298745626,4.0942877,192.61,192.57,2.74]
[1761298745821,2.3,192.62,192.57,2.74]
[1761298746022,4.09428885,192.61,192.57,2.74]
[1761298746225,2.3,192.62,192.57,2.74]
[1761298746524,4.09443059,192.61,192.57,2.74]
[1761298746824,2.3,192.62,192.57,2.74]
[1761298747023,4.09808615,192.61,192.57,2.74]
[1761298747329,2.3,192.62,192.57,2.74]
[1761298747628,4.09827444,192.61,192.57,2.74]
[1761298747828,2.3,192.62,192.57,2.74]
[1761298748025,4.09827768,192.61,192.57,2.74]
[1761298748227,2.3,192.62,192.57,2.74]
[1761298748427,4.09993577,192.61,192.57,2.74]
[1761298748628,2.3,192.62,192.57,2.74]
[1761298748819,4.10045385,192.61,192.57,2.74]
[1761298749025,7.11380424,192.65,192.59,2.37092644]
[1761298749228,6.40039314,192.64,192.6,2.81]
[1761298749425,4.10039314,192.63,192.6,2.81]
[1761298749626,4.10039314,192.62,192.6,2.81]
[1761298749930,4.10039314,192.61,192.6,2.81]
[1761298750524,2.3,192.66,192.6,2.81]
[1761298750831,6.40107859,192.65,192.6,2.81]
[1761298751027,4.10107859,192.64,192.6,2.81]
[1761298751226,4.10107859,192.63,192.6,2.81]
[1761298751424,2.3,192.65,192.6,2.81]
[1761298751629,6.40033915,192.64,192.6,2.81]
[1761298751934,4.10033915,192.63,192.6,2.81]
[1761298752234,2.3,192.64,192.6,2.81]
[1761298752433,4.09997375,192.63,192.6,2.81]
[1761298752634,2.3,192.64,192.6,2.81]
[1761298752835,4.09997605,192.63,192.6,2.81]
[1761298753134,2.3,192.64,192.6,2.81]
[1761298753332,4.10011487,192.63,192.6,2.81]
[1761298753534,2.3,192.64,192.6,2.81]
[1761298753733,4.09990147,192.63,192.6,2.81]
[1761298754032,2.3,192.64,192.6,2.81]
[1761298754234,4.09993189,192.63,192.6,2.81]
[1761298754433,2.3,192.64,192.6,2.81]
[1761298755242,2.3,192.67,192.6,2.81]
[1761298755437,6.39877713,192.66,192.6,2.81]
[1761298755739,6.39877713,192.65,192.62,2.37092644]
[1761298755932,4.09877713,192.64,192.63,2.81]
[1761298756442,2.3,192.68,192.63,2.81]
[1761298756648,4.09863656,192.67,192.63,2.81]
[1761298756943,4.09863656,192.66,192.63,2.81]
[1761298757146,2.3,192.68,192.63,2.81]
[1761298757341,6.39882068,192.67,192.63,2.81]
[1761298757542,4.09882068,192.66,192.63,2.81]
[1761298757743,2.3,192.67,192.63,2.81]
[1761298757945,4.09751537,192.66,192.65,2.81]
[1761298758347,2.3,192.7,192.65,2.81]
[1761298758546,2.3,192.68,192.65,2.81]
[1761298758748,4.09687816,192.67,192.65,2.81]
[1761298758948,2.3,192.68,192.65,2.81]
[1761298759146,4.09695999,192.67,192.65,2.81]
[1761298759446,2.3,192.68,192.65,2.81]
[1761298759745,4.09615932,192.67,192.65,2.81]
[1761298759947,2.3,192.68,192.65,2.81]
[1761298760148,4.09615932,192.67,192.65,2.81]
[1761298760350,2.3,192.68,192.65,2.81]
[1761298760542,4.09544136,192.67,192.65,2.81]